fUST/lending_fUST_20240810
["ID","MTS","AMOUNT","RATE_DAILY","PERIOD"]
[334572107,1723248638679,-151.0,0.00019762,2]
[334572108,1723248638688,-151.0,0.00019762,2]
[334572109,1723248638698,-151.0,0.00019762,2]
[334572110,1723248638707,-151.0,0.00019762,2]
[334572111,1723248638716,-270.420956,0.00019762,2]
[334572112,1723248638726,-151.0,0.00019762,2]
[334572113,1723248638735,-151.0,0.00019762,2]
[334572114,1723248638744,-256.473237,0.00019762,2]
[334572115,1723248638754,-425.880136,0.00019762,2]
[334572116,1723248638764,-425.880136,0.00019762,2]
[334572117,1723248638774,-425.880136,0.00019762,2]
[334572118,1723248638783,-425.880136,0.00019762,2]
[334572119,1723248638792,-425.880136,0.00019762,2]
[334572120,1723248638801,-425.880136,0.00019762,2]
[334572121,1723248638811,-425.880136,0.00019762,2]
[334572122,1723248638821,-425.880136,0.00019762,2]
[334572123,1723248638830,-425.880136,0.00019762,2]
[334572124,1723248638839,-425.880136,0.00019762,2]
[334572125,1723248638850,-425.880136,0.00019762,2]
[334572126,1723248638865,-425.880136,0.00019762,2]
[334572127,1723248638874,-151.0,0.00019762,2]
[334572128,1723248638884,-151.0,0.00019762,2]
[334572129,1723248638893,-151.0,0.00019762,2]
[334572130,1723248638902,-151.0,0.00019762,2]
[334572131,1723248638911,-151.0,0.00019762,2]
[334572132,1723248638921,-151.0,0.00019762,2]
[334572133,1723248638931,-1351.41513,0.00019762,2]
[334572134,1723248638940,-1351.41513,0.00019762,2]
[334572135,1723248638949,-1351.41513,0.00019762,2]
[334572136,1723248638958,-1351.41513,0.00019762,2]
[334572137,1723248638967,-1351.41513,0.00019762,2]
[334572138,1723248638977,-1351.41513,0.00019762,2]
[334572139,1723248638986,-1351.41513,0.00019762,2]
[334572140,1723248638995,-1351.41513,0.00019762,2]
[334572141,1723248639005,-1351.41513,0.00019762,2]
[334572142,1723248639014,-1351.41513,0.00019762,2]
[334572143,1723248639023,-1351.41513,0.00019762,2]
[334572144,1723248639032,-1351.41513,0.00019762,2]
[334572145,1723248639042,-1351.41513,0.00019762,2]
[334572146,1723248639051,-1351.41513,0.00019762,2]
[334572147,1723248639060,-1351.41513,0.00019762,2]
[334572148,1723248639070,-1351.41513,0.00019762,2]
[334572149,1723248639079,-1351.41513,0.00019762,2]
[334572150,1723248639088,-1351.415134,0.00019762,2]
[334572151,1723248639097,-151.0,0.00019762,2]
[334572152,1723248639108,-151.0,0.00019762,2]
[334572153,1723248639117,-557.164936,0.00019762,2]
[334572154,1723248639126,-557.164936,0.00019762,2]
[334572155,1723248639135,-557.164936,0.00019762,2]
[334572156,1723248639145,-557.164936,0.00019762,2]
[334572157,1723248639154,-557.164936,0.00019762,2]
[334572158,1723248639163,-557.164936,0.00019762,2]
[334572159,1723248639172,-557.164936,0.00019762,2]
[334572160,1723248639181,-557.164936,0.00019762,2]
[334572161,1723248639191,-557.164936,0.00019762,2]
[334572162,1723248639203,-557.164936,0.00019762,2]
[334572163,1723248639213,-557.164936,0.00019762,2]
[334572164,1723248639222,-557.164936,0.00019762,2]
[334572165,1723248639231,-557.164936,0.00019762,2]
[334572166,1723248639244,-557.164936,0.00019762,2]
[334572167,1723248639255,-557.164936,0.00019762,2]
[334572168,1723248639265,-557.164936,0.00019762,2]
[334572169,1723248639276,-557.164936,0.00019762,2]
[334572170,1723248639286,-557.164936,0.00019762,2]
[334572171,1723248639295,-557.164936,0.00019762,2]
[334572172,1723248639304,-557.164938,0.00019762,2]
[334572173,1723248639314,-485.943462,0.00019762,2]
[334572174,1723248639324,-485.94345824,0.00019762,2]
[334572175,1723248639334,-567.515415,0.00019762,2]
[334572176,1723248639343,-567.515415,0.00019762,2]
[334572177,1723248639354,-567.515415,0.00019762,2]
[334572178,1723248639363,-567.515415,0.00019762,2]
[334572179,1723248639372,-567.515415,0.00019762,2]
[334572180,1723248639381,-567.515415,0.00019762,2]
[334572181,1723248639391,-567.515415,0.00019762,2]
[334572182,1723248639400,-567.515415,0.00019762,2]
[334572183,1723248639410,-567.515415,0.00019762,2]
[334572184,1723248639419,-567.515415,0.00019762,2]
[334572185,1723248639429,-567.515415,0.00019762,2]
[334572186,1723248639438,-567.515415,0.00019762,2]
[334572187,1723248639448,-567.515415,0.00019762,2]
[334572188,1723248639459,-567.515415,0.00019762,2]
[334572189,1723248639468,-567.515415,0.00019762,2]
[334572190,1723248639478,-567.515415,0.00019762,2]
[334572191,1723248639487,-567.515415,0.00019762,2]
[334572192,1723248639497,-567.515415,0.00019762,2]
[334572193,1723248639507,-567.515415,0.00019762,2]
[334572194,1723248639516,-567.515414,0.00019762,2]
[334572195,1723248639527,-442.304535,0.00019762,2]
[334572196,1723248639536,-442.304535,0.00019762,2]
[334572197,1723248639546,-442.304535,0.00019762,2]
[334572198,1723248639555,-442.304535,0.00019762,2]
[334572199,1723248639565,-442.304535,0.00019762,2]
[334572200,1723248639574,-442.304535,0.00019762,2]
[334572201,1723248639584,-442.304535,0.00019762,2]
[334572202,1723248639594,-442.304535,0.00019762,2]
[334572203,1723248639604,-442.304535,0.00019762,2]
[334572204,1723248639613,-442.304535,0.00019762,2]
[334572205,1723248639623,-442.304535,0.00019762,2]
[334572206,1723248639633,-442.304535,0.00019762,2]
[334572207,1723248639643,-442.304535,0.00019762,2]
[334572208,1723248639653,-442.304535,0.00019762,2]
[334572209,1723248639663,-442.304535,0.00019762,2]
[334572210,1723248639672,-442.304535,0.00019762,2]
[334572211,1723248639682,-442.304535,0.00019762,2]
[334572212,1723248639691,-442.304535,0.00019762,2]
[334572213,1723248639701,-442.304535,0.00019762,2]
[334572214,1723248639710,-442.304528,0.00019762,2]
[334572215,1723248639720,-339.25302,0.00019762,2]
[334572216,1723248639732,-339.25302,0.00019762,2]
[334572217,1723248639743,-339.25302,0.00019762,2]
[334572218,1723248639754,-339.25302,0.00019762,2]
[334572219,1723248639763,-339.25302,0.00019762,2]
[334572220,1723248639773,-339.25302,0.00019762,2]
[334572221,1723248639784,-339.25302,0.00019762,2]
[334572222,1723248639939,-339.253027,0.00019762,2]
[334572223,1723248639949,-151.0,0.00019762,2]
[334572224,1723248639958,-161.741449,0.00019762,2]
[334572225,1723248639967,-151.0,0.00019762,2]
[334572226,1723248639976,-161.741449,0.00019762,2]
[334572227,1723248639986,-161.741449,0.00019762,2]
[334572228,1723248639996,-151.0,0.00019762,2]
[334572229,1723248640005,-161.741449,0.00019762,2]
[334572230,1723248640014,-151.0,0.00019762,2]
[334572231,1723248640024,-161.741449,0.00019762,2]
[334572232,1723248640034,-151.0,0.00019762,2]
[334572233,1723248640044,-161.741449,0.00019762,2]
[334572234,1723248640054,-161.741449,0.00019762,2]
[334572235,1723248640063,-161.741449,0.00019762,2]
[334572236,1723248640073,-161.741449,0.00019762,2]
[334572237,1723248640084,-161.741449,0.00019762,2]
[334572238,1723248640094,-161.741449,0.00019762,2]
[334572239,1723248640106,-161.741449,0.00019762,2]
[334572240,1723248640119,-161.741449,0.00019762,2]
[334572241,1723248640129,-161.741449,0.00019762,2]
[334572242,1723248640139,-161.741449,0.00019762,2]
[334572243,1723248640149,-161.741449,0.00019762,2]
[334572244,1723248640158,-161.741449,0.00019762,2]
[334572245,1723248640168,-161.741449,0.00019762,2]
[334572246,1723248640178,-161.741449,0.00019762,2]
[334572247,1723248640188,-161.741455,0.00019762,2]
[334572248,1723248640202,-151.494469,0.00019762,2]
[334572249,1723248640212,-197.122544,0.00019762,2]
[334572250,1723248640221,-197.122544,0.00019762,2]
[334572251,1723248640231,-197.122544,0.00019762,2]
[334572252,1723248640241,-197.122544,0.00019762,2]
[334572253,1723248640251,-197.122544,0.00019762,2]
[334572254,1723248640260,-197.122544,0.00019762,2]
[334572255,1723248640270,-197.122544,0.00019762,2]
[334572256,1723248640282,-197.122544,0.00019762,2]
[334572257,1723248640293,-197.122544,0.00019762,2]
[334572258,1723248640302,-197.122544,0.00019762,2]
[334572259,1723248640312,-197.122544,0.00019762,2]
[334572260,1723248640322,-197.122544,0.00019762,2]
[334572261,1723248640332,-197.122544,0.00019762,2]
[334572262,1723248640341,-197.122544,0.00019762,2]
[334572263,1723248640350,-197.122544,0.00019762,2]
[334572264,1723248640367,-197.122544,0.00019762,2]
[334572265,1723248640377,-197.122544,0.00019762,2]
[334572266,1723248640387,-197.122544,0.00019762,2]
[334572267,1723248640397,-197.122544,0.00019762,2]
[334572268,1723248640406,-197.122549,0.00019762,2]
[334572269,1723248640416,-151.0,0.00019762,2]
[334572270,1723248640426,-203.633994,0.00019762,2]
[334572271,1723248640435,-492.120259,0.00019762,2]
[334572272,1723248640445,-492.120259,0.00019762,2]
[334572273,1723248640454,-492.120259,0.00019762,2]
[334572274,1723248640464,-492.120259,0.00019762,2]
[334572275,1723248640474,-492.120259,0.00019762,2]
[334572276,1723248640484,-492.120259,0.00019762,2]
[334572277,1723248640494,-492.120259,0.00019762,2]
[334572278,1723248640510,-492.120259,0.00019762,2]
[334572279,1723248640519,-492.120259,0.00019762,2]
[334572280,1723248640529,-492.120259,0.00019762,2]
[334572281,1723248640539,-492.120259,0.00019762,2]
[334572282,1723248640549,-492.120259,0.00019762,2]
[334572283,1723248640559,-492.120259,0.00019762,2]
[334572284,1723248640568,-492.120259,0.00019762,2]
[334572285,1723248640578,-492.120259,0.00019762,2]
[334572286,1723248640587,-492.120259,0.00019762,2]
[334572287,1723248640597,-492.120259,0.00019762,2]
[334572288,1723248640610,-492.120259,0.00019762,2]
[334572289,1723248640619,-492.120259,0.00019762,2]
[334572290,1723248640628,-492.120265,0.00019762,2]
[334572291,1723248640638,-151.0,0.00019762,2]
[334572292,1723248640647,-151.0,0.00019762,2]
[334572293,1723248640657,-151.0,0.00019762,2]
[334572294,1723248640667,-162.669912,0.00019762,2]
[334572295,1723248640677,-631.45584,0.00019762,2]
[334572296,1723248640687,-631.45584,0.00019762,2]
[334572297,1723248640696,-631.45584,0.00019762,2]
[334572298,1723248640705,-631.45584,0.00019762,2]
[334572299,1723248640715,-631.45584,0.00019762,2]
[334572300,1723248640724,-631.45584,0.00019762,2]
[334572301,1723248640734,-631.45584,0.00019762,2]
[334572302,1723248640744,-631.45584,0.00019762,2]
[334572303,1723248640754,-631.45584,0.00019762,2]
[334572304,1723248640763,-631.45584,0.00019762,2]
[334572305,1723248640772,-631.45584,0.00019762,2]
[334572306,1723248640781,-631.45584,0.00019762,2]
[334572307,1723248640791,-631.45584,0.00019762,2]
[334572308,1723248640801,-631.45584,0.00019762,2]
[334572309,1723248640811,-631.45584,0.00019762,2]
[334572310,1723248640820,-631.45584,0.00019762,2]
[334572311,1723248640829,-631.45584,0.00019762,2]
[334572312,1723248640839,-631.45584,0.00019762,2]
[334572313,1723248640849,-631.45584,0.00019762,2]
[334572314,1723248640860,-631.455831,0.00019762,2]
[334572315,1723248640869,-266.917895,0.00019762,2]
[334572316,1723248640879,-151.0,0.00019762,2]
[334572317,1723248640889,-151.0,0.00019762,2]
[334572318,1723248640898,-151.0,0.00019762,2]
[334572319,1723248640908,-151.0,0.00019762,2]
[334572320,1723248640917,-151.0,0.00019762,2]
[334572321,1723248640927,-151.0,0.00019762,2]
[334572322,1723248640938,-151.0,0.00019762,2]
[334572323,1723248640949,-151.0,0.00019762,2]
[334572324,1723248640958,-151.0,0.00019762,2]
[334572325,1723248640967,-151.0,0.00019762,2]
[334572326,1723248640976,-151.0,0.00019762,2]
[334572327,1723248640985,-151.0,0.00019762,2]
[334572328,1723248640995,-237.439538,0.00019762,2]
[334572329,1723248641005,-151.0,0.00019762,2]
[334572330,1723248641014,-151.0,0.00019762,2]
[334572331,1723248641025,-151.0,0.00019762,2]
[334572332,1723248641035,-151.0,0.00019762,2]
[334572333,1723248641047,-151.0,0.00019762,2]
[334572334,1723248641056,-151.0,0.00019762,2]
[334572335,1723248641066,-151.0,0.00019762,2]
[334572336,1723248641077,-205.378104,0.00019762,2]
[334572337,1723248641086,-201.259173,0.00019762,2]
[334572338,1723248641096,-201.259173,0.00019762,2]
[334572339,1723248641108,-201.259173,0.00019762,2]
[334572340,1723248641118,-201.259173,0.00019762,2]
[334572341,1723248641128,-201.259173,0.00019762,2]
[334572342,1723248641137,-201.259173,0.00019762,2]
[334572343,1723248641148,-201.259173,0.00019762,2]
[334572344,1723248641159,-201.259173,0.00019762,2]
[334572345,1723248641169,-201.259173,0.00019762,2]
[334572346,1723248641179,-201.259173,0.00019762,2]
[334572347,1723248641188,-201.259173,0.00019762,2]
[334572348,1723248641201,-201.259173,0.00019762,2]
[334572349,1723248641211,-201.259173,0.00019762,2]
[334572350,1723248641221,-201.259173,0.00019762,2]
[334572351,1723248641230,-201.259173,0.00019762,2]
[334572352,1723248641240,-201.259173,0.00019762,2]
[334572353,1723248641250,-201.259173,0.00019762,2]
[334572354,1723248641260,-201.259173,0.00019762,2]
[334572355,1723248641270,-201.259173,0.00019762,2]
[334572356,1723248641282,-201.259166,0.00019762,2]
[334572357,1723248641292,-975.575331,0.00019762,2]
[334572358,1723248641301,-975.575331,0.00019762,2]
[334572359,1723248641311,-975.575331,0.00019762,2]
[334572360,1723248641321,-975.575331,0.00019762,2]
[334572361,1723248641330,-975.575331,0.00019762,2]
[334572362,1723248641339,-975.575331,0.00019762,2]
[334572363,1723248641349,-975.575331,0.00019762,2]
[334572364,1723248641359,-975.575331,0.00019762,2]
[334572365,1723248641369,-975.575331,0.00019762,2]
[334572366,1723248641379,-975.575331,0.00019762,2]
[334572367,1723248641388,-975.575331,0.00019762,2]
[334572368,1723248641399,-975.575331,0.00019762,2]
[334572369,1723248641408,-975.575331,0.00019762,2]
[334572370,1723248641417,-975.575331,0.00019762,2]
[334572371,1723248641427,-975.575331,0.00019762,2]
[334572372,1723248641436,-975.575331,0.00019762,2]
[334572373,1723248641445,-975.575331,0.00019762,2]
[334572374,1723248641455,-975.575331,0.00019762,2]
[334572375,1723248641464,-975.575331,0.00019762,2]
[334572376,1723248641474,-975.575323,0.00019762,2]
[334572377,1723248641484,-170.601554,0.00019762,2]
[334572378,1723248641495,-170.601554,0.00019762,2]
[334572379,1723248641505,-170.601554,0.00019762,2]
[334572380,1723248641516,-170.601554,0.00019762,2]
[334572381,1723248641526,-170.601554,0.00019762,2]
[334572382,1723248641536,-170.601554,0.00019762,2]
[334572383,1723248641547,-170.601554,0.00019762,2]
[334572384,1723248641557,-170.601554,0.00019762,2]
[334572385,1723248641567,-170.601554,0.00019762,2]
[334572386,1723248641577,-170.601554,0.00019762,2]
[334572387,1723248641586,-170.601554,0.00019762,2]
[334572388,1723248641595,-170.601554,0.00019762,2]
[334572389,1723248641606,-170.601554,0.00019762,2]
[334572390,1723248641615,-170.601554,0.00019762,2]
[334572391,1723248641624,-170.601554,0.00019762,2]
[334572392,1723248641633,-170.601554,0.00019762,2]
[334572393,1723248641643,-170.601554,0.00019762,2]
[334572394,1723248641652,-170.601554,0.00019762,2]
[334572395,1723248641662,-170.601554,0.00019762,2]
[334572396,1723248641671,-170.601546,0.00019762,2]
[334572397,1723248641680,-151.0,0.00019762,2]
[334572398,1723248641690,-151.0,0.00019762,2]
[334572399,1723248641699,-151.0,0.00019762,2]
[334572400,1723248641709,-151.0,0.00019762,2]
[334572401,1723248641718,-151.0,0.00019762,2]
[334572402,1723248641727,-151.0,0.00019762,2]
[334572403,1723248641737,-151.0,0.00019762,2]
[334572404,1723248641746,-151.0,0.00019762,2]
[334572405,1723248641756,-151.0,0.00019762,2]
[334572406,1723248641765,-151.0,0.00019762,2]
[334572407,1723248641774,-151.0,0.00019762,2]
[334572408,1723248641783,-222.965825,0.00019762,2]
[334572409,1723248641792,-151.0,0.00019764,2]
[334572410,1723248641802,-151.0,0.00019764,2]
[334572411,1723248641812,-151.0,0.00019764,2]
[334572412,1723248641823,-151.0,0.00019764,2]
[334572413,1723248641834,-425.880136,0.00019764,2]
[334572414,1723248641844,-425.880136,0.00019764,2]
[334572415,1723248641856,-425.880136,0.00019764,2]
[334572416,1723248641865,-425.880136,0.00019764,2]
[334572417,1723248641873,-425.880136,0.00019764,2]
[334572418,1723248641883,-425.880136,0.00019764,2]
[334572419,1723248641892,-425.880136,0.00019764,2]
[334572420,1723248641902,-425.880138,0.00019764,2]
[334572421,1723248641911,-151.0,0.00019764,2]
[334572422,1723248641921,-181.058956,0.00019764,2]
[334572423,1723248641932,-200.0,0.00019773,2]
[334572424,1723248641943,-4683.84297584,0.00019847,2]
[334572425,1723248641952,-306.0,0.00019863,2]
[334572426,1723248641963,-207.2250634,0.0002,2]
[334572427,1723248641973,-156.45284227,0.0002,2]
[334572428,1723248641982,-207.2250634,0.0002,2]
[334572429,1723248641991,-207.2250634,0.0002,2]
[334572430,1723248642001,-209.147045,0.0002,2]
[334572431,1723248642010,-267.8162636,0.0002,2]
[334572432,1723248642019,-267.8162636,0.0002,2]
[334572433,1723248642028,-207.2250634,0.0002,2]
[334572436,1723248642038,-267.8162636,0.0002,2]
[334572438,1723248642047,-267.8162636,0.0002,2]
[334572440,1723248642057,-267.8162636,0.0002,2]
[334572442,1723248642067,-188.09055485,0.0002,2]
[334572444,1723248642076,-4683.84297584,0.00020032,2]
[334572447,1723248642085,-267.8162636,0.0002011,2]
[334572448,1723248642094,-4683.84297584,0.00020217,2]
[334572449,1723248642105,-207.2250634,0.000203,2]
[334572450,1723248642114,-4683.84297584,0.00020402,2]
[334572451,1723248642122,-151.0,0.00020488,2]
[334572452,1723248642131,-310.1035036,0.0002049,2]
[334572454,1723248642140,-500.0,0.0002049,2]
[334572455,1723248642149,-500.0,0.0002049,2]
[334572457,1723248642158,-500.0,0.0002049,2]
[334572459,1723248642167,-500.0,0.0002049,2]
[334572460,1723248642177,-165.71385588,0.0002049,2]
[334572461,1723248642186,-500.0,0.0002049,2]
[334572463,1723248642196,-500.0,0.0002049,2]
[334572464,1723248642208,-500.0,0.0002049,2]
[334572465,1723248642217,-500.0,0.0002049,2]
[334572466,1723248642226,-500.0,0.0002049,2]
[334572467,1723248642235,-500.0,0.0002049,2]
[334572468,1723248642245,-377.28575522,0.0002049,2]
[334572470,1723248642254,-500.0,0.0002049,2]
[334572471,1723248642264,-500.0,0.0002049,2]
[334572472,1723248642274,-500.0,0.0002049,2]
[334572473,1723248642284,-500.0,0.0002049,2]
[334572474,1723248642293,-500.0,0.0002049,2]
[334572475,1723248642302,-500.0,0.0002049,2]
[334572476,1723248642312,-500.0,0.0002049,2]
[334572477,1723248642321,-500.0,0.0002049,2]
[334572478,1723248642330,-500.0,0.0002049,2]
[334572479,1723248642340,-500.0,0.0002049,2]
[334572480,1723248642350,-500.0,0.0002049,2]
[334572482,1723248642364,-500.0,0.0002049,2]
[334572484,1723248642373,-500.0,0.0002049,2]
[334572485,1723248642382,-500.0,0.0002049,2]
[334572487,1723248642391,-500.0,0.0002049,2]
[334572489,1723248642515,-330.59542313,0.0002049,2]
[334572490,1723248642524,-500.0,0.0002049,2]
[334572491,1723248642534,-500.0,0.0002049,2]
[334572492,1723248642544,-63316.90700509,0.0002049,11]
[334572493,1723248642554,-91085.59841472,0.00020491,2]
[334572494,1723248642573,-2765.24409558,0.00020491,2]
[334572495,1723248642583,-173.69961623,0.00020492,2]
[334572496,1723248642594,-254.63533274,0.00020492,2]
[334572520,1723248643121,-93422.50756133,0.00020492,2]
[334572521,1723248643131,-150.112233,0.000205,5]
[334572522,1723248643140,-8252.52129952,0.00020501,3]
[334572523,1723248643149,-150.01,0.00020511,2]
[334572524,1723248643158,-2993.10206773,0.00020511,2]
[334572525,1723248643166,-151.0,0.00020511,2]
[334572526,1723248643175,-151.0,0.00020511,2]
[334572527,1723248643185,-4184.36415148,0.00020512,2]
[334572528,1723248643197,-3122.69881526,0.00020512,2]
[334572529,1723248643207,-10493.07332189,0.00020512,2]
[334572530,1723248643217,-201.417382,0.00020512,2]
[334572531,1723248643226,-151.0,0.00020512,2]
[334572532,1723248643237,-151.0,0.00020512,2]
[334572533,1723248643247,-163.65451499,0.00020512,2]
[334572534,1723248643259,-40288.846061,0.00020512,2]
[334572535,1723248643268,-151.0,0.00020521,2]
[334572537,1723248643279,-240.917556,0.00020521,2]
[334572539,1723248643289,-151.0,0.00020521,2]
[334572540,1723248643298,-151.0,0.00020521,2]
[334572541,1723248643307,-153.0,0.00020548,2]
[334572543,1723248643317,-153.0,0.00020548,2]
[334572545,1723248643326,-306.0,0.00020548,2]
[334572547,1723248643336,-153.2214191,0.00020548,2]
[334572548,1723248643346,-153.0,0.00020548,2]
[334572549,1723248643355,-294.5666805,0.00020548,2]
[334572550,1723248643367,-267.8162636,0.00020548,2]
[334572551,1723248643376,-306.0,0.00020548,2]
[334572552,1723248643385,-153.0,0.00020548,2]
[334572553,1723248643394,-207.2250634,0.00020548,2]
[334572554,1723248643405,-1412.0,0.00020552,2]
[334572555,1723248643414,-150.112233,0.000206,3]
[334572556,1723248643423,-151.0,0.00020644,2]
[334572557,1723248643432,-1005.013645,0.000207,2]
[334572558,1723248643442,-1000.0,0.00020715,2]
[334572559,1723248643451,-150.0,0.00020744,2]
[334572560,1723248643460,-1000.0,0.00020752,2]
[334572561,1723248643470,-1000.0,0.00020764,2]
[334572562,1723248643479,-1000.0,0.00020793,2]
[334572563,1723248643488,-150.0,0.00020795,2]
[334572564,1723248643498,-540.897,0.00020795,2]
[334572565,1723248643508,-150.112233,0.000208,3]
[334572566,1723248643517,-151.0,0.00020801,2]
[334572567,1723248643526,-1000.0,0.00020808,2]
[334572568,1723248643536,-1000.0,0.00020819,2]
[334572569,1723248643546,-582.01,0.00020821,3]
[334572570,1723248643557,-1611.34,0.00020821,3]
[334572571,1723248643566,-657.09,0.00020821,3]
[334572572,1723248643575,-500.0,0.00020821,3]
[334572573,1723248643584,-4414.65,0.00020821,3]
[334572574,1723248643593,-10651.6,0.00020821,3]
[334572575,1723248643602,-1161.51,0.00020821,3]
[334572576,1723248643615,-1360.85,0.00020821,3]
[334572577,1723248643624,-1180.28,0.00020821,3]
[334572578,1723248643633,-500.0,0.00020821,3]
[334572579,1723248643642,-1338.3,0.00020821,3]
[334572580,1723248643652,-702.7,0.00020821,3]
[334572581,1723248643661,-753.89,0.00020821,3]
[334572582,1723248643670,-12573.75,0.00020821,3]
[334572583,1723248643680,-12573.75,0.00020821,3]
[334572584,1723248643689,-12573.75,0.00020821,3]
[334572585,1723248643699,-12573.75,0.00020821,3]
[334572586,1723248643708,-12573.75,0.00020821,3]
[334572587,1723248643718,-12573.75,0.00020821,3]
[334572588,1723248643728,-12516.46145854,0.00020821,3]
[334572602,1723248646394,-153.0,0.00020274,2]
[334572603,1723248646404,-57.28854146,0.00020821,3]
[334572604,1723248646413,-109.75444429,0.00020821,3]
[334572605,1723248659765,1013.2657141,0.00022907,60]
[334572708,1723249838385,-1427.13726875,0.00018904,2]
[334572709,1723249838394,-200.0,0.00018904,2]
[334572710,1723249838404,-170.589378,0.00019219,2]
[334572711,1723249838413,-239.7922858,0.00019261,2]
[334572712,1723249838423,-115.01162945,0.00019284,2]
[334572713,1723249838444,-720.84043094,0.00019284,2]
[334572730,1723249843055,-1891.02370491,0.00019284,2]
[334572733,1723249843064,-154.77557542,0.00019477,2]
[334572735,1723249843074,-2911.44693298,0.00019662,2]
[334572736,1723249843084,-1460.60206332,0.00019899,2]
[334572737,1723249843093,-300.0,0.00019899,2]
[334572738,1723249843103,-153.0,0.000199,2]
[334572739,1723249843123,-153.0,0.000199,2]
[334572741,1723249843133,-153.0,0.000199,2]
[334572742,1723249843142,-153.0,0.000199,2]
[334572743,1723249843151,-338.96064139,0.000199,2]
[334572744,1723249843161,-153.0,0.00019941,2]
[334572745,1723249843170,-153.0,0.00019941,2]
[334572746,1723249843180,-153.0,0.00019941,2]
[334572747,1723249843189,-200.0,0.00019973,2]
[334572748,1723249843199,-294.5666805,0.00019978,2]
[334572749,1723249843209,-245.258309,0.00019978,2]
[334572750,1723249843219,-616.5,0.0001998,3]
[334572751,1723249843228,-513.75,0.0001998,3]
[334572752,1723249843238,-256.87,0.0001998,3]
[334572753,1723249843248,-298.34585866,0.00019989,2]
[334572754,1723249843258,-120714.71269838,0.0001999,2]
[334572760,1723249843699,-11.83106871,0.0001999,2]
[334572780,1723249968979,273.37336231,9.9e-05,2]
[334572781,1723249984317,273.37336231,9.9e-05,2]
[334572783,1723249999881,273.37336231,9.9e-05,2]
[334572784,1723250016282,273.37336231,9.9e-05,2]
[334572785,1723250032074,273.37336231,9.9e-05,2]
[334572786,1723250048484,273.37336231,9.9e-05,2]
[334572787,1723250064355,273.37336231,9.9e-05,2]
[334572788,1723250079777,273.37336231,9.9e-05,2]
[334572789,1723250095121,273.37336231,9.9e-05,2]
[334572790,1723250110476,273.37336231,9.9e-05,2]
[334572801,1723250126068,273.37336231,9.9e-05,2]
[334572802,1723250142189,273.37336231,9.9e-05,2]
[334572803,1723250157830,273.37336231,9.9e-05,2]
[334572805,1723250173269,273.37336231,9.9e-05,2]
[334572806,1723250189688,273.37336231,9.9e-05,2]
[334572807,1723250205217,273.37336231,9.9e-05,2]
[334572808,1723250221616,273.37336231,9.9e-05,2]
[334572809,1723250237691,273.37336231,9.9e-05,2]
[334572810,1723250281750,250.0,0.00027,120]
[334572859,1723251038633,-5170.16791471,0.00017833,2]
[334572860,1723251038643,-300.0,0.00017926,2]
[334572861,1723251038653,-233.0,0.00017926,2]
[334572862,1723251038666,-23519.0814435,0.00017927,2]
[334572863,1723251038675,-198.967164,0.00018,2]
[334572864,1723251038685,-5170.16791471,0.00018095,2]
[334572865,1723251038695,-5170.16791471,0.00018358,2]
[334572866,1723251038705,-5170.16791471,0.00018783,2]
[334572867,1723251038715,-203.79804559,0.00018804,2]
[334572868,1723251038725,-191.76257474,0.00018804,2]
[334572869,1723251038734,-1765.0406182,0.000189,2]
[334572870,1723251038743,-200.0,0.00018904,2]